bitfinex/quotes_SOLUSD_20251031
["timestamp","ask_amount","ask_price","bid_price","bid_amount"]
[1761910294623,4.66551109,187.06,187.02,53.84334999]
[1761910294913,3.97551109,187.05,187.02,48.49633594]
[1761910295614,3.97551109,187.05,187.02,53.12335405]
[1761910295790,5.34559688,187.07,187.03,3.8134512]
[1761910295990,3.97579678,187.06,187.03,3.8134512]
[1761910296218,3.97579678,187.06,187.04,0.72]
[1761910296397,3.97579678,187.06,187.04,3.8134512]
[1761910296605,0.69,187.07,187.04,3.8134512]
[1761910296791,3.97625887,187.06,187.04,3.8134512]
[1761910296988,3.97625887,187.06,187.02,44.68288474]
[1761910297193,4.66625887,187.05,187.02,44.68288474]
[1761910297419,10.01280134,187.04,187.02,44.68288474]
[1761910297593,20.592,187.0,186.98,16.07673963]
[1761910297898,16.8564097,186.99,186.9,0.72]
[1761910298102,16.8564097,186.99,186.9,3.8134512]
[1761910298103,3.0934512,186.96,186.9,3.8134512]
[1761910298600,0.69,186.95,186.9,3.8134512]
[1761910299002,0.69,186.95,186.91,0.72]
[1761910300433,3.7834512,186.95,186.91,0.72]
[1761910300723,3.7834512,186.95,186.87,5.35128316]
[1761910300724,3.97295683,186.94,186.87,5.35128316]
[1761910300929,0.69,186.94,186.88,0.72]
[1761910301222,3.7834512,186.93,186.88,0.72]
[1761910301426,3.0934512,186.92,186.86,21.312]
[1761910301610,3.7834512,186.92,186.87,3.0934512]
[1761910301924,0.69,186.91,186.88,0.72]
[1761910302326,9.13305493,186.93,186.88,0.72]
[1761910302622,0.69,186.93,186.89,3.0934512]
[1761910302809,0.69,186.93,186.89,3.8134512]
[1761910303012,0.69,186.93,186.89,0.72]
[1761910303304,0.69,186.93,186.89,3.8134512]
[1761910303502,9.13308288,186.93,186.88,9.16442078]
[1761910304017,0.69,186.92,186.88,9.16442078]
[1761910305019,0.69,186.92,186.88,6.07096958]
[1761910306506,0.69,186.92,186.88,9.16442078]
[1761910306709,0.69,186.92,186.88,8.44442078]
[1761910307025,3.0934512,186.94,186.89,3.8134512]
[1761910307407,3.7834512,186.94,186.9,0.72]
[1761910307606,0.69,186.93,186.9,0.72]
[1761910308729,3.7834512,186.95,186.9,3.8134512]
[1761910308927,0.69,186.95,186.91,3.0934512]
[1761910309133,0.69,186.95,186.91,3.8134512]
[1761910309820,8.44226711,186.96,186.92,0.72]
[1761910310045,29.03394179,186.97,186.92,0.72]
[1761910310213,29.03394179,186.97,186.9,50.0333102]
[1761910310214,3.7834512,186.95,186.9,50.0333102]
[1761910310407,9.13255606,186.95,186.9,44.68288474]
[1761910310730,3.7834512,186.94,186.9,44.68288474]
[1761910311030,3.7834512,186.94,186.9,45.40288474]
[1761910311816,3.0934512,186.95,186.91,0.72]
[1761910312013,0.69,186.95,186.91,3.8134512]
[1761910313629,9.13250348,186.95,186.9,44.68288474]
[1761910313841,3.0934512,186.94,186.9,44.68288474]
[1761910314044,3.0934512,186.93,186.89,44.68288474]
[1761910314337,3.7834512,186.93,186.89,45.40288474]
[1761910314528,0.69,186.92,186.89,45.40288474]
[1761910315434,3.0934512,186.93,186.89,45.40288474]
[1761910315435,3.7834512,186.93,186.89,45.40288474]
[1761910316440,3.0934512,186.93,186.89,45.40288474]
[1761910316645,3.7834512,186.92,186.89,44.68288474]
[1761910317140,0.69,186.91,186.89,44.68288474]
[1761910317343,0.69,186.91,186.87,50.75412601]
[1761910319418,3.7834512,186.91,186.87,50.03412601]
[1761910319836,0.66,186.9,186.87,50.03412601]
[1761910320120,3.7534512,186.91,186.87,50.03412601]
[1761910320334,3.0934512,186.92,186.88,0.7]
[1761910320732,3.7534512,186.92,186.88,0.7]
[1761910320939,0.66,186.91,186.88,0.7]
[1761910322147,3.0934512,186.92,186.88,6.05100881]
[1761910322333,3.7534512,186.92,186.88,6.05100881]
[1761910322524,3.0934512,186.92,186.88,0.7]
[1761910322722,0.66,186.91,186.88,0.7]
[1761910323047,0.66,186.91,186.88,45.38288474]
[1761910323419,3.0934512,186.92,186.88,50.73390078]
[1761910323625,3.7534512,186.92,186.88,50.73390078]
[1761910325135,3.0934512,186.93,186.89,0.7]
[1761910325339,3.0934512,186.94,186.89,0.7]
[1761910325543,3.7534512,186.94,186.89,0.7]
[1761910325744,0.66,186.93,186.89,0.7]
[1761910326138,9.10321662,186.93,186.88,53.12735198]
[1761910326436,3.0934512,186.92,186.88,50.73390078]
[1761910326642,3.7534512,186.92,186.88,50.73390078]
[1761910326846,0.66,186.91,186.88,50.73390078]
[1761910327149,3.0934512,186.9,186.84,71.32681537]
[1761910327351,3.0934512,186.89,186.84,45.38288474]
[1761910327546,3.0934512,186.88,186.84,45.38288474]
[1761910327931,3.7534512,186.88,186.84,45.38288474]
[1761910328130,9.10487887,186.87,186.82,6.25267906]
[1761910328341,3.0934512,186.86,186.82,0.2]
[1761910328544,3.0934512,186.85,186.82,0.2]
[1761910328850,3.0934512,186.83,186.82,0.2]
[1761910329241,3.7534512,186.83,186.82,0.2]
[1761910330234,0.66,186.83,186.82,0.2]
[1761910331145,9.10551377,186.85,186.82,0.2]
[1761910331359,0.66,186.84,186.82,0.2]
[1761910332153,3.0934512,186.83,186.82,0.2]
[1761910332654,3.7534512,186.83,186.82,0.2]
[1761910334155,0.66,186.83,186.82,0.2]
[1761910334351,3.7534512,186.83,186.82,0.2]
[1761910335658,9.10591065,186.83,186.82,0.2]
[1761910336657,3.7534512,186.83,186.82,0.2]
[1761910337150,21.252,186.83,186.82,0.2]
[1761910337744,24.3454512,186.83,186.82,0.2]
[1761910338439,29.69791065,186.83,186.82,0.2]
[1761910339242,33.65027204,186.83,186.82,0.2]
[1761910340634,43.43909973,186.83,186.82,0.2]
[1761910342165,43.44085763,186.83,186.82,0.2]
[1761910347263,43.43871368,186.83,186.82,0.2]
[1761910349359,42.33119119,186.83,186.82,0.2]
[1761910352243,38.37921585,186.83,186.82,0.2]
[1761910354548,36.39328714,186.83,186.82,0.2]
[1761910354854,38.37921585,186.83,186.82,0.2]
[1761910355869,42.32951696,186.83,186.82,0.2]
[1761910358378,9.78882769,186.82,186.81,0.2]
[1761910358679,16.37505751,186.82,186.81,0.2]
[1761910359760,21.72780346,186.82,186.81,0.2]
[1761910361866,27.61324446,186.82,186.81,0.2]
[1761910365859,21.72780346,186.82,186.81,0.2]
[1761910366903,26.96324446,186.82,186.81,0.2]
[1761910367195,41.66980346,186.82,186.81,0.2]
[1761910367966,39.68387475,186.82,186.81,0.2]
[1761910368284,36.31705751,186.82,186.81,0.86]
[1761910368473,26.52822982,186.82,186.81,0.86]
[1761910369289,31.88097577,186.82,186.81,0.86]
[1761910371382,31.89469158,186.82,186.81,0.86]
[1761910372366,31.89469158,186.82,186.81,0.2]
[1761910373478,31.89469158,186.82,186.81,0.86]
[1761910373869,26.54194563,186.82,186.81,0.86]
[1761910374272,31.89469158,186.82,186.81,0.86]
[1761910374895,31.89469158,186.82,186.81,0.2]
[1761910375275,31.89469158,186.82,186.81,0.86]
[1761910375488,31.89469158,186.82,186.81,0.2]
[1761910376171,36.1199005,186.82,186.81,0.2]
[1761910377272,45.90872819,186.82,186.81,0.2]
[1761910377691,25.31672819,186.82,186.81,0.2]
[1761910378169,31.20216919,186.82,186.81,0.2]
[1761910378895,9.78882769,186.81,186.8,5.885441]
[1761910379097,25.34701473,186.81,186.8,5.885441]
[1761910379877,25.34701473,186.81,186.74,0.86]
[1761910379878,20.592,186.78,186.74,0.2]
[1761910380095,1.98592871,186.75,186.74,0.2]
[1761910380307,5.94994563,186.75,186.74,0.87]
[1761910380773,5.95926453,186.75,186.74,0.87]
[1761910381794,3.97333582,186.75,186.74,0.87]
[1761910384794,3.97333582,186.75,186.74,8.2109678]
[1761910385221,3.97333582,186.75,186.74,6.22503909]
[1761910385644,3.97333582,186.75,186.74,0.87]
[1761910393221,3.97333582,186.75,186.74,0.2]
[1761910394935,11.31401687,186.75,186.74,0.2]
[1761910395331,11.99401687,186.75,186.74,0.2]
[1761910395634,11.31401687,186.75,186.74,0.2]
[1761910396320,11.99401687,186.75,186.74,0.2]
[1761910397034,11.31401687,186.75,186.74,0.2]
[1761910397439,21.79284456,186.75,186.74,0.2]
[1761910398721,33.32012438,186.75,186.74,0.2]
[1761910400048,25.37640954,186.75,186.74,0.2]
[1761910401847,33.32012438,186.75,186.74,0.2]
[1761910404111,33.32012438,186.75,186.73,1e-08]
[1761910404316,30.38082769,186.72,186.71,0.2]
[1761910404640,39.9236572,186.72,186.71,0.2]
[1761910404808,40.6136572,186.72,186.71,0.2]
[1761910405818,45.96926988,186.72,186.71,0.2]
[1761910406425,25.37726988,186.72,186.71,0.2]
[1761910407914,9.78882769,186.71,186.7,0.2]
[1761910408118,16.43809222,186.71,186.7,0.2]
[1761910409344,22.91545602,186.71,186.7,0.2]
[1761910411228,22.91545602,186.71,186.7,9.38357938]
[1761910411229,3.97333582,186.71,186.7,9.38357938]
[1761910411542,3.10739299,186.83,186.7,11.53048113]
[1761910411732,0.71,186.84,186.78,3.10739299]
[1761910411929,3.10739299,186.82,186.77,3.10739299]
[1761910412148,20.592,186.81,186.77,3.10739299]
[1761910412644,29.05225475,186.82,186.77,3.10739299]
[1761910414926,29.76225475,186.82,186.77,3.10739299]
[1761910415541,29.76225475,186.82,186.76,3.10739299]
[1761910416440,3.10739299,186.81,186.76,3.10739299]
[1761910416643,3.10739299,186.81,186.76,8.46184424]
[1761910417028,8.46056734,186.81,186.76,3.10739299]
[1761910417241,9.17056734,186.81,186.76,3.10739299]
[1761910417648,9.17056734,186.81,186.73,13.3881934]
[1761910417649,23.69939299,186.78,186.73,3.10739299]
[1761910417852,20.592,186.78,186.73,19.20656388]
[1761910418229,20.592,186.78,186.74,3.10739299]
[1761910418430,20.592,186.78,186.75,3.10739299]
[1761910419242,20.592,186.78,186.75,8.46214071]
[1761910419629,9.17080322,186.8,186.72,5.35561268]
[1761910419830,9.17080322,186.8,186.75,3.10739299]
[1761910420137,3.10739299,186.79,186.74,3.10739299]
[1761910420733,3.10739299,186.79,186.74,8.4623604]
[1761910421162,3.81739299,186.79,186.74,8.4623604]
[1761910421449,9.17107172,186.79,186.74,8.4623604]
[1761910421653,3.81739299,186.78,186.74,3.10739299]
[1761910421854,3.81739299,186.78,186.73,8.46269476]
[1761910422043,3.81739299,186.78,186.73,3.10739299]
[1761910422243,3.10739299,186.77,186.72,8.46298138]
[1761910422850,3.81739299,186.77,186.72,8.46298138]
[1761910423354,3.81739299,186.76,186.7,68.25594932]
[1761910423536,3.81739299,186.76,186.71,3.10739299]
[1761910423537,3.10739299,186.76,186.71,3.10739299]
[1761910424858,3.10739299,186.72,186.7,0.2]
[1761910425063,3.10739299,186.71,186.7,0.2]
[1761910425245,3.81739299,186.71,186.7,0.2]
[1761910427060,0.71,186.71,186.7,0.2]
[1761910427230,3.81739299,186.71,186.7,0.2]
[1761910427428,18.9621202,186.71,186.7,0.2]
[1761910429233,12.89622068,186.71,186.7,0.2]
[1761910429636,20.592,186.71,186.7,0.2]
[1761910430744,12.89622068,186.74,186.7,0.2]
[1761910430944,3.97311865,186.73,186.7,0.2]
[1761910431357,7.08051164,186.73,186.7,0.2]
[1761910431560,3.97311865,186.72,186.7,0.2]
[1761910432845,29.054197,186.75,186.7,8.66350741]
[1761910433054,3.9736875,186.74,186.7,8.66350741]
[1761910433258,7.08108049,186.74,186.7,5.55611442]
[1761910433540,3.81739299,186.74,186.7,0.2]
[1761910435275,29.76458091,186.74,186.7,0.2]
[1761910436180,24.40939299,186.74,186.7,0.2]
[1761910437287,3.10739299,186.73,186.7,5.55613676]
[1761910438679,3.10739299,186.73,186.7,0.2]
[1761910439677,20.592,186.74,186.7,0.2]
[1761910439870,3.10739299,186.73,186.7,0.2]
[1761910441469,23.17496118,186.77,186.7,8.66353896]
[1761910441470,9.78882769,186.76,186.7,8.66353896]
[1761910441666,7.08503382,186.75,186.7,8.66353896]
[1761910441968,3.10739299,186.75,186.7,8.66353896]
[1761910442787,26.66618571,186.77,186.72,3.10739299]
[1761910442788,20.592,186.77,186.72,3.10739299]
[1761910442972,9.78882769,186.78,186.72,3.10739299]
[1761910442973,3.98021196,186.76,186.72,3.10739299]
[1761910443182,3.98021196,186.75,186.72,3.10739299]
[1761910443361,3.82739299,186.77,186.72,3.10739299]
[1761910443697,3.98012466,186.76,186.72,3.10739299]
[1761910444063,3.10739299,186.78,186.73,3.10739299]
[1761910444261,3.98022231,186.77,186.73,3.10739299]
[1761910444783,3.98022231,186.77,186.72,65.80739299]
[1761910444962,3.98022231,186.77,186.73,5.35532587]
[1761910445991,3.98022231,186.77,186.73,8.46271886]
[1761910448884,3.10739299,186.74,186.7,0.2]
[1761910449085,3.10739299,186.71,186.7,0.2]
[1761910449578,7.80855027,186.71,186.7,0.2]
[1761910450084,17.59737796,186.71,186.7,0.2]
[1761910450589,22.95327748,186.71,186.7,0.2]
[1761910456798,17.59737796,186.71,186.7,0.2]
[1761910457196,24.57315728,186.71,186.7,0.2]
[1761910457394,27.68055027,186.71,186.7,0.2]
[1761910457897,28.33055027,186.71,186.7,0.2]
[1761910459783,27.68055027,186.71,186.7,0.2]
[1761910462900,24.57315728,186.71,186.7,0.2]
[1761910463091,27.68055027,186.71,186.7,0.2]
[1761910465481,28.33055027,186.71,186.7,0.2]
[1761910466579,24.57315728,186.71,186.7,0.2]
[1761910466784,27.68055027,186.71,186.7,0.2]
[1761910467210,24.57315728,186.71,186.7,0.2]
[1761910467392,3.10739299,186.75,186.7,3.30739299]
[1761910467591,3.99377469,186.74,186.7,8.66357938]
[1761910467796,3.99377469,186.73,186.7,5.55618639]
[1761910468100,3.99377469,186.72,186.7,5.55618639]
[1761910468300,3.99377469,186.71,186.7,5.55618639]
[1761910470309,3.99377469,186.71,186.7,0.2]
[1761910471509,6.68117399,186.71,186.7,0.2]
[1761910472888,5.98117399,186.71,186.7,0.2]
[1761910476015,1.9873993,186.71,186.7,0.2]
[1761910476205,5.98152275,186.71,186.7,0.2]
[1761910477113,6.68152275,186.71,186.7,0.2]
[1761910477616,21.82624996,186.71,186.7,0.2]
[1761910478005,25.42064807,186.71,186.7,0.2]
[1761910478403,25.41990634,186.71,186.7,0.2]
[1761910480234,25.42101953,186.71,186.7,0.2]
[1761910496148,25.42540192,186.71,186.7,0.2]
[1761910500156,23.43800262,186.71,186.7,0.2]
[1761910500457,25.42540192,186.71,186.7,0.2]
[1761910503050,30.38082769,186.67,186.66,0.2]
[1761910503357,47.9110996,186.67,186.66,0.2]
[1761910503557,48.5810996,186.67,186.66,0.2]
[1761910503759,53.93814679,186.67,186.66,0.2]
[1761910504254,45.98854959,186.67,186.66,0.2]
[1761910509648,37.9741031,186.67,186.66,0.2]
[1761910509850,15.77510429,186.67,186.66,0.2]
[1761910510045,37.03710429,186.67,186.66,0.2]
[1761910510441,36.36710429,186.67,186.66,0.2]
[1761910510767,16.44510429,186.67,186.66,0.2]
[1761910510943,36.36710429,186.67,186.66,0.2]
[1761910511145,3.7888773,186.67,186.66,2.1873993]
[1761910511347,8.94373737,186.76,186.66,5.55733419]
[1761910511554,8.01186492,186.76,186.71,1.9873993]
[1761910511745,9.78882769,186.75,186.71,1.9873993]
[1761910512157,9.78882769,186.75,186.72,1.9873993]
[1761910512551,20.592,186.75,186.66,26.90026686]
[1761910512804,20.592,186.75,186.72,1.9873993]
[1761910512962,3.58927175,186.76,186.73,1.9873993]
[1761910513169,13.37809944,186.78,186.74,1.9873993]
[1761910513353,9.78882769,186.78,186.74,1.9873993]
[1761910513559,14.04809944,186.78,186.73,7.34263117]
[1761910514382,13.37809944,186.78,186.73,7.34263117]
[1761910514555,9.78882769,186.78,186.73,7.34263117]
[1761910514755,9.78882769,186.78,186.74,1.9873993]
[1761910514962,13.37809944,186.78,186.74,1.9873993]
[1761910515283,3.58927175,186.78,186.74,1.9873993]
[1761910515575,1.9873993,186.79,186.74,1.9873993]
[1761910515773,5.57667105,186.79,186.74,1.9873993]
[1761910516079,6.24667105,186.79,186.74,1.9873993]
[1761910517076,6.24667105,186.79,186.74,7.34239753]
[1761910517247,6.24667105,186.79,186.74,5.35499823]
[1761910517671,1.9873993,186.77,186.7,76.089826]
[1761910517876,1.9873993,186.77,186.72,1.9873993]
[1761910518087,1.9873993,186.75,186.7,1.9873993]
[1761910518256,1.9873993,186.76,186.71,1.9873993]
[1761910518851,2.6673993,186.76,186.71,1.9873993]
[1761910519056,2.6673993,186.76,186.72,5.35561268]
[1761910519471,11.77622699,186.77,186.72,7.34301198]
[1761910520171,12.45622699,186.77,186.72,7.34301198]
[1761910521167,17.81041122,186.77,186.71,5.35587896]
[1761910521482,17.81041122,186.77,186.72,1.9873993]
[1761910522070,12.45622699,186.77,186.72,1.9873993]
[1761910523279,3.98235171,186.76,186.73,5.35532587]
[1761910523582,3.98235171,186.75,186.73,5.35532587]
[1761910523771,3.98235171,186.74,186.73,5.35532587]
[1761910524768,3.98235171,186.74,186.72,1.9873993]
[1761910524967,3.98235171,186.73,186.72,7.34301198]
[1761910525174,3.98235171,186.73,186.72,5.35561268]
[1761910526178,3.98235171,186.73,186.71,1.9873993]
[1761910526378,3.98235171,186.72,186.71,1.9873993]
[1761910527385,3.98235171,186.72,186.71,7.34321728]
[1761910527976,3.98235171,186.72,186.7,5.35618639]
[1761910528293,1.9873993,186.75,186.7,68.05618639]
[1761910528493,3.97854597,186.74,186.71,1.9873993]
[1761910528692,3.97854597,186.73,186.71,1.9873993]
[1761910528992,3.97854597,186.72,186.71,1.9873993]
[1761910529378,3.97854597,186.72,186.71,7.34329882]
[1761910529979,3.97854597,186.72,186.71,5.35589952]
[1761910530177,3.97854597,186.72,186.71,7.34329882]
[1761910530378,3.97854597,186.72,186.67,64.6873993]
[1761910530379,6.64594527,186.72,186.67,64.6873993]
[1761910530577,3.97854597,186.71,186.67,64.6873993]
[1761910530780,3.97854597,186.7,186.67,64.6873993]
[1761910530979,3.97854597,186.69,186.67,64.6873993]
[1761910531181,1.9873993,186.72,186.67,64.6873993]
[1761910531381,4.65756785,186.71,186.68,5.35676023]
[1761910531574,3.97756785,186.7,186.68,5.35676023]
[1761910531784,0.68,186.71,186.68,5.35676023]
[1761910531785,3.97756785,186.69,186.68,5.35676023]
[1761910531989,3.97756785,186.69,186.68,7.34415953]
[1761910532187,1.9873993,186.75,186.68,20.7360601]
[1761910532392,3.97720045,186.74,186.71,1.9873993]
[1761910532591,3.97720045,186.73,186.71,1.9873993]
[1761910532783,3.97720045,186.72,186.71,1.9873993]
[1761910533302,3.97720045,186.72,186.68,18.7486608]
[1761910533480,3.97720045,186.71,186.7,3.10389946]
[1761910533891,3.97720045,186.71,186.7,8.46008585]
[1761910535484,3.97659326,186.71,186.69,3.10389946]
[1761910535686,3.97659326,186.7,186.69,3.10389946]
[1761910536198,3.97659326,186.7,186.68,18.7486608]
[1761910536502,0.68,186.73,186.7,5.35618639]
[1761910536690,3.97706432,186.72,186.7,5.35618639]
[1761910537001,3.97706432,186.71,186.7,5.35618639]
[1761910538400,3.97706432,186.71,186.69,3.10389946]
[1761910538592,3.97706432,186.7,186.69,3.10389946]
[1761910540009,3.97706432,186.7,186.69,8.46037275]
[1761910543007,3.97706432,186.72,186.69,21.85155599]
[1761910543208,31.06082769,186.77,186.71,3.10389946]
[1761910543385,3.97458399,186.76,186.73,3.10389946]
[1761910543587,3.97458399,186.75,186.73,3.10389946]
[1761910543801,3.97458399,186.74,186.73,3.10389946]
[1761910544509,3.97458399,186.74,186.73,8.45922533]
[1761910551816,3.97458399,186.74,186.73,71.15922533]
[1761910552018,4.25724187,186.82,186.73,105.67507258]
[1761910552204,3.97999392,186.81,186.78,3.10389946]
[1761910552402,3.97999392,186.8,186.78,3.10389946]
[1761910552609,3.97999392,186.79,186.77,3.10389946]
[1761910552816,3.97999392,186.78,186.77,3.10389946]
[1761910553121,3.97999392,186.78,186.76,3.10389946]
[1761910553301,3.97999392,186.77,186.76,3.10389946]
[1761910553501,3.97999392,186.77,186.75,3.10389946]
[1761910553815,3.97999392,186.76,186.75,3.10389946]
[1761910554017,3.97999392,186.76,186.75,8.4586518]
[1761910556124,3.98884151,186.76,186.75,8.4586518]
[1761910559726,4.68884151,186.76,186.75,8.4586518]
[1761910560026,3.98884151,186.76,186.75,8.4586518]
[1761910560321,4.68884151,186.76,186.73,62.7]
[1761910560522,4.68884151,186.75,186.73,71.15918435]
[1761910560836,3.98884151,186.74,186.73,71.15918435]
[1761910561037,4.68884151,186.74,186.73,68.05528489]
[1761910561242,4.68884151,186.74,186.73,71.15918435]
[1761910562931,3.98884151,186.74,186.73,71.15918435]
[1761910563442,3.98884151,186.74,186.73,8.45918435]
[1761910563810,3.98884151,186.74,186.73,5.35528489]
[1761910564110,3.98884151,186.74,186.73,8.45918435]
[1761910569230,3.98884151,186.74,186.73,71.15918435]
[1761910573630,0.7,186.78,186.73,84.54749902]
[1761910573939,3.99576807,186.77,186.73,81.44359956]
[1761910574120,3.99576807,186.76,186.75,20.592]
[1761910574952,3.99576807,186.76,186.75,23.69589946]
[1761910575942,0.7,186.79,186.75,42.43753265]
[1761910576144,0.7,186.79,186.78,3.10389946]
[1761910576344,4.69556866,186.79,186.78,3.10389946]
[1761910577347,4.69556866,186.79,186.78,8.45779173]
[1761910578524,3.99556866,186.79,186.78,8.45779173]
[1761910581353,4.65556866,186.79,186.78,8.45779173]
[1761910582651,3.99556866,186.79,186.78,8.45779173]
[1761910585140,3.9938597,186.79,186.78,21.84252242]
[1761910586559,3.9938597,186.79,186.78,84.54252242]
[1761910592071,3.9938597,186.79,186.78,81.43862296]
[1761910592270,4.6838597,186.79,186.78,84.54252242]
[1761910592570,3.9938597,186.79,186.78,84.54252242]
[1761910592982,4.6838597,186.79,186.78,84.54252242]
[1761910593452,4.6838597,186.79,186.78,83.42307078]
[1761910593650,3.9938597,186.79,186.78,83.42307078]
[1761910594460,4.6838597,186.79,186.78,81.43862296]
[1761910594661,3.9938597,186.79,186.78,83.42307078]
[1761910599860,4.6838597,186.79,186.78,83.42307078]
[1761910601478,3.9938597,186.79,186.78,83.42307078]
[1761910602383,4.6838597,186.79,186.78,83.42307078]
[1761910605183,4.6838597,186.79,186.78,81.43862296]
[1761910605376,4.6838597,186.79,186.78,83.42307078]
[1761910605684,4.68297012,186.79,186.78,83.42307078]
[1761910608282,3.99297012,186.79,186.78,83.42307078]
[1761910610081,3.99797396,186.79,186.78,83.42307078]
[1761910610283,8.92855842,186.87,186.78,81.43862296]
[1761910610583,0.69,186.81,186.78,81.43862296]
[1761910610887,3.99803214,186.8,186.78,81.43862296]
[1761910611075,3.99803214,186.79,186.78,81.43862296]
[1761910611677,3.99803214,186.79,186.78,83.42307078]
[1761910612677,0.69,186.81,186.78,83.42307078]
[1761910612881,0.69,186.81,186.8,1.98444782]
[1761910613081,4.6893962,186.81,186.8,1.98444782]
[1761910613484,4.6893962,186.81,186.8,7.33776687]
[1761910616092,4.6893962,186.81,186.8,70.03776687]
[1761910619785,4.6893962,186.81,186.8,5.35331905]
[1761910619971,4.6893962,186.81,186.8,7.33776687]
[1761910624998,4.6893962,186.81,186.8,70.03776687]
[1761910628514,4.6893962,186.81,186.76,62.7]
[1761910628685,8.26663807,186.8,186.78,1.98444782]
[1761910628878,3.9993962,186.79,186.78,1.98444782]
[1761910629079,4.6893962,186.79,186.78,1.98444782]
[1761910630005,4.6893962,186.79,186.78,7.33834009]
[1761910630203,4.6893962,186.79,186.78,1.98444782]
[1761910631311,4.6893962,186.79,186.77,1.98444782]
[1761910631511,4.6893962,186.78,186.77,1.98444782]
[1761910632012,4.6893962,186.78,186.75,62.7]
[1761910632315,4.6893962,186.77,186.75,64.68444782]
[1761910632492,3.9993962,186.76,186.75,68.0547064]
[1761910632813,4.6893962,186.76,186.75,68.0547064]
[1761910633212,4.6893962,186.76,186.75,62.7]
[1761910635913,4.6893962,186.76,186.75,62.7]
[1761910636707,12.02837446,186.76,186.69,5.35647329]
[1761910636918,6.67384402,186.75,186.69,5.35647329]
[1761910637099,3.9993962,186.74,186.7,1.98444782]
[1761910637304,3.9993962,186.73,186.7,1.98444782]
[1761910637503,3.9993962,186.72,186.7,1.98444782]
[1761910637711,3.9993962,186.71,186.7,1.98444782]
[1761910637902,4.6593962,186.71,186.7,1.98444782]
[1761910638809,4.6593962,186.71,186.69,1.98444782]
[1761910639007,1.98444782,186.75,186.7,1.98444782]
[1761910639187,3.99300431,186.74,186.7,1.98444782]
[1761910639514,3.99300431,186.73,186.7,1.98444782]
[1761910639716,3.99300431,186.72,186.7,1.98444782]
[1761910639914,3.99300431,186.71,186.7,1.98444782]
[1761910640304,4.65300431,186.71,186.7,1.98444782]
[1761910641416,0.66,186.71,186.7,1.98444782]
[1761910644120,4.64546629,186.71,186.68,1.98444782]
[1761910644293,3.98546629,186.7,186.68,1.98444782]
[1761910644494,3.98546629,186.69,186.68,64.68444782]
[1761910644708,4.64546629,186.69,186.68,64.68444782]
[1761910645215,0.66,186.69,186.68,70.04120805]
[1761910646017,0.66,186.7,186.68,70.04120805]
[1761910646212,0.66,186.7,186.69,1.98444782]
[1761910647025,0.66,186.7,186.69,7.34092111]
[1761910648613,4.63788326,186.72,186.69,7.34092111]
[1761910648820,0.66,186.72,186.7,1.98444782]
[1761910649114,0.67,186.71,186.69,5.35647329]
[1761910649321,3.97752076,186.73,186.7,1.98444782]
[1761910649517,4.64752076,186.73,186.72,1.98444782]
[1761910649720,0.67,186.73,186.72,1.98444782]
[1761910650433,4.64752076,186.73,186.72,1.98444782]
[1761910650613,0.67,186.73,186.72,1.98444782]
[1761910651302,4.64752076,186.73,186.72,1.98444782]
[1761910651702,0.67,186.73,186.71,7.34010245]
[1761910651907,0.67,186.72,186.71,7.34010245]
[1761910654109,0.67,186.72,186.71,5.35565463]
[1761910654304,0.67,186.72,186.71,7.34010245]
[1761910655236,0.67,186.72,186.71,5.35565463]
[1761910655540,0.67,186.72,186.71,8.4592532]
[1761910656034,0.67,186.74,186.71,8.4592532]
[1761910656216,4.64358214,186.74,186.71,5.35565463]
[1761910656405,0.67,186.74,186.71,5.35565463]
[1761910656610,0.67,186.73,186.71,5.35565463]
[1761910657009,3.97375687,186.74,186.71,81.44540343]
[1761910657212,0.67,186.76,186.71,81.44540343]
[1761910657423,0.67,186.76,186.74,3.10359857]
[1761910657424,3.97463456,186.75,186.74,3.10359857]
[1761910658138,0.67,186.78,186.74,3.10359857]
[1761910658343,3.97589751,186.77,186.71,81.98099338]
[1761910658540,0.67,186.78,186.71,81.98099338]
[1761910659034,4.64603717,186.8,186.72,10.07315083]
[1761910659273,3.97603717,186.79,186.75,20.592]
[1761910659467,3.97603717,186.79,186.78,3.10359857]
[1761910660635,0.67,186.8,186.78,3.10359857]
[1761910660839,3.97770541,186.79,186.77,3.10359857]
[1761910661074,0.67,186.8,186.77,8.4577775]
[1761910661247,4.64809465,186.79,186.77,8.4577775]